Cogmind - Beta 15 @@@ ROGUE MODE // 2025.06.20 @ 11:50:57 Player: LightKnight Result: Destroyed by G-73 Enforcer with Phase Gun Performance ------------- Evolutions (7) 3500 Regions Visited (17) 3400 Robots Destroyed (227) 1135 Value Destroyed (10539) 10539 Prototype IDs (39) 780 Alien Tech Used (1) 200 Bonus (5011) 5011 TOTAL SCORE: 24565 Bonus ------- Triggered High Security 500 High Alert Combat Kills 2609 Follower Combat Kills 2512 Network Hubs Disabled 200 Registered with UFD 300 Met Optimus in HQ 500 Built Enhanced Grunts 300 Met R17 at Cetus 500 Met R17 at Research 2000 Friendly Fire -4410 Cogmind --------- Core Integrity 0/1300 Matter 257/300 Energy 98/100 System Corruption 9% Temperature Cool (0) Movement Core (50) Location -3/Protoforge Parts ------- > --- POWER (2) -------- (None) > --- PROPULSION (5) --- (None) > --- UTILITY (10) ----- (None) > --- WEAPON (4) ------- (None) > --- INVENTORY (5) ---- Improved Heavy Treads Centrium Heavy Treads Peak State ------------ > --- POWER ------------ Overtuned Antimatter Reactor Quantum Reactor > --- PROPULSION ------- Medium Treads Improved Heavy Treads Improved Heavy Siege Treads > --- UTILITY ---------- Advanced Power Amplifier Advanced Heat Sink Improved Cooling System Advanced Cooling System Experimental Coolant Injector Large Storage Unit Advanced Visual Processing Unit Advanced Target Analyzer Advanced Remote Force Field Phase Redirector Rainbow Chip > --- WEAPON ----------- Advanced Variable Charge Gun Quantum Rifle Advanced KE Penetrator Advanced KE Penetrator > --- INVENTORY -------- Micro Antimatter Reactor Improved Heavy Treads Centrium Heavy Treads Dimensional Node Initializer High-powered Transdimensional Reconstructor Terrabomb Advanced Variable Charge Gun Advanced Variable Charge Gun Advanced KE Penetrator Advanced KE Penetrator Neutron Missile Launcher Sigix Broadsword [Rating: 174] Favorites ----------- Power Subdweller Power Source Engine Subdweller Power Source Power Core Light Nuclear Core Reactor Cooled Antimatter Reactor Propulsion Light Treads Treads Light Treads Leg Improved VSS Leg Utility Large Storage Unit Device Advanced Cooling System Storage Large Storage Unit Processor Rainbow Chip Protection Hardened Light Armor Plating Artifact Phase Redirector Weapon Advanced Variable Charge Gun Energy Gun Advanced Variable Charge Gun Energy Cannon Phase Cannon Ballistic Gun Heavy Battle Rifle Launcher Subdweller Shrapnel Launcher Special Weapon Junk Cannon Special Melee Weapon Datajack Build | -11 -10 -10 -10 -8 -8 -6 -6 -6 -5 -5 -5 -5 -5 -4 -3 -3 -3 ------- Run | Yrd Mat Min Sub Rec Scr Fac Was Fac Fac Ext Cet Arc Hub Fac Res Qua Frg Slots Evolved 14 | . . . . . . 8 . . 2 . . . . 2 2 . . Power 1 | . . . . . . . . . . . . . . 1 . . . Propulsion 3 | . . . . . . 2 . . 1 . . . . . . . . Utility 8 | . . . . . . 5 . . . . . . . 1 2 . . Weapon 2 | . . . . . . 1 . . 1 . . . . . . . . Parts Attached 131 | . 8 2 22 1 6 10 . 26 5 13 11 1 3 7 9 7 . Power 19 | . 2 1 5 . 2 1 . 2 1 . 1 . . 1 1 2 . Engine 9 | . 2 1 5 . 1 . . . . . . . . . . . . Core 2 | . . . . . 1 . . 1 . . . . . . . . . Reactor 8 | . . . . . . 1 . 1 1 . 1 . . 1 1 2 . Propulsion 31 | . 2 . 4 1 . 2 . 8 1 6 2 . . 3 1 1 . Treads 25 | . 2 . 4 1 . 2 . 3 . 6 2 . . 3 1 1 . Leg 6 | . . . . . . . . 5 1 . . . . . . . . Wheel . | . . . . . . . . . . . . . . . . . . Hover . | . . . . . . . . . . . . . . . . . . Flight . | . . . . . . . . . . . . . . . . . . Utility 43 | . 3 . 3 . . 6 . 7 2 6 5 . 1 1 6 3 . Device 25 | . . . . . . 5 . 4 2 4 2 . 1 . 5 2 . Storage 1 | . 1 . . . . . . . . . . . . . . . . Processor 5 | . . . 1 . . 1 . 1 . . . . . 1 1 . . Hackware . | . . . . . . . . . . . . . . . . . . Protection 11 | . 2 . 2 . . . . 2 . 2 3 . . . . . . Artifact 1 | . . . . . . . . . . . . . . . . 1 . Weapon 38 | . 1 1 10 . 4 1 . 9 1 1 3 1 2 2 1 1 . Energy Gun 14 | . . . 1 . 2 . . 6 . . 2 1 1 1 . . . Energy Cannon 1 | . . . . . . . . 1 . . . . . . . . . Ballistic Gun 16 | . 1 1 6 . 1 1 . 1 1 1 . . . 1 1 1 . Ballistic Cannon . | . . . . . . . . . . . . . . . . . . Launcher 4 | . . . 2 . . . . 1 . . . . 1 . . . . Special Weapon 2 | . . . . . 1 . . . . . 1 . . . . . . Impact Weapon . | . . . . . . . . . . . . . . . . . . Slashing Weapon . | . . . . . . . . . . . . . . . . . . Piercing Weapon . | . . . . . . . . . . . . . . . . . . Special Melee Weapon 1 | . . . 1 . . . . . . . . . . . . . . Unidentified Prototypes 13 | . . . . . 1 . . 4 . . 4 . 1 1 1 1 . Parts Lost 48 | . . 2 6 . . 1 2 16 . . . . 1 3 2 1 14 Power 7 | . . 1 1 . . . . 3 . . . . . . 1 . 1 Propulsion 15 | . . . 2 . . . 2 6 . . . . 1 1 . . 3 Utility 14 | . . . . . . 1 . 4 . . . . . 1 1 1 6 Weapon 12 | . . 1 3 . . . . 3 . . . . . 1 . . 4 Highest Loss Streak 11 | . . 2 2 . . 1 2 4 . . . . 1 1 2 1 11 To Critical Strikes . | . . . . . . . . . . . . . . . . . . Average Backups 12 | . 11 12 13 14 13 12 14 12 8 11 14 13 14 12 11 12 11 Power 1 | . 1 . . 2 . . 1 1 2 2 2 2 2 1 . 1 . Propulsion 3 | . 3 5 4 4 4 3 3 . . 1 1 1 1 1 2 2 2 Utility 3 | . 3 5 4 4 3 3 4 1 1 3 4 4 4 3 1 . . Weapon 4 | . 1 1 2 3 3 4 5 7 4 4 6 6 7 6 6 5 4 Tool/Special . | . . . . . . . . . . . . . . . . . . Unused Backups 39 | . 11 1 3 . 7 . . 2 . 1 5 1 1 . . 1 6 Power 6 | . 3 . . . 1 . . 1 . . 1 . . . . . . Propulsion 13 | . 5 . . . 3 . . . . . 3 . . . . . 2 Utility 11 | . 2 . 3 . 2 . . 1 . . 1 . 1 . . 1 . Weapon 6 | . 1 1 . . 1 . . . . 1 . 1 . . . . 1 Tool/Special 3 | . . . . . . . . . . . . . . . . . 3 Average Slot Usage (%) 91 | . 98 99 93 90 92 93 84 88 80 97 88 88 87 88 88 89 84 Engine 5 | . 14 14 11 9 7 5 5 2 . . . . . . . . . Core 1 | . . . . . 4 . . 2 . . . . . . . . . Reactor 2 | . . . . . . 4 4 2 5 5 5 5 5 10 8 9 8 Treads 21 | . 20 28 27 27 27 25 24 11 . 16 16 16 15 13 13 13 12 Leg 2 | . 7 . . . . . . 12 21 9 . . . . . . . Device 8 | . . . . . . 18 20 13 9 19 22 22 22 19 25 28 24 Storage 7 | . 14 14 11 9 9 5 5 5 5 5 5 5 5 5 4 4 3 Processor 9 | . . . 5 9 9 9 10 16 16 12 11 11 11 11 13 13 12 Protection 7 | . 12 14 11 9 9 2 . 2 . 4 5 5 5 8 4 . . Energy Gun 9 | . 14 . 6 . 8 5 5 9 10 11 13 21 21 19 16 8 8 Ballistic Gun 11 | . 14 26 16 27 15 14 4 . 10 10 8 . . . 1 9 8 Peak Build Rating 174 | . 9 9 32 34 50 81 86 105 100 120 144 144 144 163 165 174 172 Average Rating 71 | . 8 8 23 33 41 78 82 84 95 107 136 143 140 157 162 166 162 On Entrance 82 | 6 6 9 9 32 34 47 81 66 61 96 120 144 144 136 154 165 172 Naked Turns 19 | . . . . . . . . . . . . . . . . . 19 Heaviest Build 114 | 11 34 34 46 42 53 65 69 63 59 76 76 76 79 100 114 113 113 Greatest Support 190 | 20 40 40 60 62 62 104 104 107 60 160 190 190 190 190 178 178 178 Greatest Overweight (x) 3 | . . . 1 . . . . 3 . 2 . . . . . . . Average Overweight (x) . | . . . . . . . . . . . . . . . . . . Largest Inventory Capacity 15 | . 15 15 15 15 15 15 15 15 15 15 15 15 15 15 15 15 15 Average Capacity 14 | . 13 15 15 15 15 15 15 15 15 15 15 15 15 15 15 15 14 Most Carried 15 | . 15 14 15 15 15 15 15 15 13 15 15 15 15 15 15 15 15 Average Carried 13 | . 11 12 14 15 14 13 14 12 9 12 14 14 15 14 14 14 14 Final Capacity 15 | 8 15 15 15 15 15 15 15 15 15 15 15 15 15 15 15 15 5 Final Carried 15 | 6 14 13 15 15 15 15 15 14 10 15 15 15 15 15 14 15 4 Class Distribution -------------------- 26% | Scavenger-Tank 21% | Tank 19% | Mutant 15% | Derelict-Tank 6% | Scavenger-Skirmisher 4% | Derelict-Skirmisher Dominant Class ---------------- Mutant | -10/Materials Mutant | -10/Mines Tank | -10/Subcaves Tank | -8/Recycling Derelict-Tank | -8/Scraptown Derelict-Gunner | -6/Factory Derelict-Gunner | -6/Waste Derelict-Skirmisher | -6/Factory Scavenger-Skirmisher | -5/Factory Scavenger-Tank | -5/Extension Scavenger-Tank | -5/Cetus Scavenger-Tank | -5/Archives Scavenger-Tank | -5/Hub_04(d) Scavenger-Tank | -4/Factory Scavenger-Tank | -3/Research Scavenger-Tank | -3/Quarantine Scavenger-Tank | -3/Protoforge Resources | -11 -10 -10 -10 -8 -8 -6 -6 -6 -5 -5 -5 -5 -5 -4 -3 -3 -3 ----------- Run | Yrd Mat Min Sub Rec Scr Fac Was Fac Fac Ext Cet Arc Hub Fac Res Qua Frg Matter Collected 4156 | 200 209 51 649 118 110 349 . 525 . 538 154 20 123 355 181 334 240 Remotely . | . . . . . . . . . . . . . . . . . . Salvage Created 11187 | . 525 90 704 79 . 508 308 2653 81 1167 270 . 999 1726 525 743 809 Parts 476 | . 40 4 39 1 . 16 2 107 . 51 18 . 42 79 20 32 25 Haulers Intercepted 3 | . 2 . . . . . . . . . . . 1 . . . . Recyclers Shooed 3 | . . . . . . . . 3 . . . . . . . . . Parts Field Recycled . | . . . . . . . . . . . . . . . . . . Retrieved Matter . | . . . . . . . . . . . . . . . . . . Parts Self-Destructed 11 | . . . 11 . . . . . . . . . . . . . . Prevented . | . . . . . . . . . . . . . . . . . . Kills | -11 -10 -10 -10 -8 -8 -6 -6 -6 -5 -5 -5 -5 -5 -4 -3 -3 -3 ------- Run | Yrd Mat Min Sub Rec Scr Fac Was Fac Fac Ext Cet Arc Hub Fac Res Qua Frg Combat Hostiles Destroyed 183 | . 11 2 20 . . 8 1 44 1 17 2 . 13 35 7 11 11 Guns 124 | . 10 2 16 . . 8 . 21 . 14 2 . 4 22 6 11 8 Cannons 9 | . . . . . . . 1 8 . . . . . . . . . AOE 35 | . 1 . 4 . . . . 6 . . . . 8 13 . . 3 Classes Destroyed 22 | . 7 . 1 1 . 1 1 8 . 1 . . 1 . . . 1 Worker 7 | . 1 . . . . . . 3 . . . . 1 1 . 1 . Builder 9 | . . . . . . . . 4 . 2 . . 1 2 . . . Tunneler 1 | . 1 . . . . . . . . . . . . . . . . Hauler 3 | . 2 . . . . . . . . . . . 1 . . . . Recycler 3 | . . . . 1 . . . 1 . 1 . . . . . . . Mechanic 1 | . . . . . . . . . . . . . . . . . 1 Operator 2 | . 1 . . . . . . . . 1 . . . . . . . Watcher 10 | . 3 . . . . 1 . . . 2 . . . 1 . . 3 Swarmer 39 | . 6 . . . . . . . . 7 . . 8 13 . 3 2 Saboteur 1 | . . . . . . . . 1 . . . . . . . . . Grunt 63 | . 5 2 . . . 7 . 20 . 3 . . 2 10 . 7 7 Brawler 3 | . . . . . . . . 1 . . . . . 1 . 1 . Duelist 1 | . . . . . . . . 1 . . . . . . . . . Protector 1 | . . . . . . . . 1 . . . . . . . . . Sentry 15 | . . . . . . . . 4 1 5 . . 1 3 1 . . Specialist 3 | . . . . . . . . 2 . . . . 1 . . . . Hunter 14 | . . . . . . . . 8 . . . . . 3 3 . . Programmer 14 | . . . . . . 1 . 6 . . . . . 4 3 . . Heavy 2 | . . . . . . . . . . . . . 1 1 . . . Behemoth 2 | . . . . . . . . . . 2 . . . . . . . Compactor 1 | . . . . . . . 1 . . . . . . . . . . Cetus Guard 2 | . . . . . . . . . . . 2 . . . . . . Enhanced Grunt 4 | . . . . . . . . . . . . . 4 . . . . Hotshot 2 | . . . . . . . . . . . . . . . . . 2 Subdweller 20 | . . . 20 . . . . . . . . . . . . . . Butcher 1 | . . . . . . . . . . . 1 . . . . . . Guerrilla 2 | . . . . . . . . . . . . . 2 . . . . Best Kill Streak 10 | . 4 1 3 1 . 4 1 8 1 5 2 . 9 7 5 4 10 Combat Bots Only 8 | . 3 1 3 . . 4 1 6 1 4 2 . 8 5 5 4 4 Max Kills in Single Turn 5 | . 2 1 2 1 . 2 1 3 1 2 1 . 5 4 1 1 3 Gunslinging 1 | . . . . . . 1 . . . 1 . . . 1 . . . Exploded 5 | . 1 . 2 . . . . 3 . . . . 5 4 . . 2 Melee . | . . . . . . . . . . . . . . . . . . Uniques/NPCs Destroyed 1 | . . . . . . . . . . . 1 . . . . . . A7 (-5/Cetus) Combat | -11 -10 -10 -10 -8 -8 -6 -6 -6 -5 -5 -5 -5 -5 -4 -3 -3 -3 -------- Run | Yrd Mat Min Sub Rec Scr Fac Was Fac Fac Ext Cet Arc Hub Fac Res Qua Frg Hostile Shots Fired 1063 | . 36 14 78 . . 35 2 364 4 63 . 6 55 149 20 69 168 Missed 350 | . 15 1 25 . . 8 . 137 1 20 . 2 16 48 5 19 53 Hits 713 | . 21 13 53 . . 27 2 227 3 43 . 4 39 101 15 50 115 Melee 2 | . . . . . . . 2 . . . . . . . . . . Projectile 711 | . 21 13 53 . . 27 . 227 3 43 . 4 39 101 15 50 115 AOE 6 | . . . 4 . . . . . . . . . . 2 . . . Critical Strikes 26 | . . 1 1 . . 1 1 5 . 4 . . 2 3 2 1 5 Part Disruptions 1 | . . . . . . . . 1 . . . . . . . . . Damage Taken 14091 | . 210 193 1333 . . 496 83 3300 66 666 . 98 1181 2439 360 706 2960 Core 2524 | . 10 15 212 . . . . 689 . 37 . . 37 214 15 143 1152 Absorbed by Shields 912 | . . . . . . . . . . 242 . . . . 132 422 116 Reduced by Siege Mode 230 | . . . . . . . . . . . . . . 29 29 30 142 Redirected to Core 433 | . . . . . . . . . . . . . . . . 103 330 Redirected to Shielding 2 | . 2 . . . . . . . . . . . . . . . . Ignored by Resistances 4 | . . . . . . . . 4 . . . . . . . . . Regen/Repaired (Parts) 15 | . . . . . . 15 . . . . . . . . . . . Core Remaining (%) 59 | 100 . . . . 5 . . 18 . . . . 92 81 . . . Volleys Fired 637 | . 44 10 147 8 . 33 4 127 9 41 23 5 35 60 27 30 34 Largest 4 | . 2 2 3 1 . 4 3 3 4 4 4 4 4 4 4 4 4 Hottest 404 | . 60 60 133 30 . 213 153 264 246 246 248 328 328 334 334 404 244 Shots Fired 1507 | . 75 20 212 8 . 97 12 283 15 134 68 11 106 217 59 83 107 Gun 1398 | . 75 20 205 8 . 97 8 201 15 131 66 11 103 212 59 83 104 Cannon 41 | . . . . . . . . 41 . . . . . . . . . Launcher 28 | . . . 7 . . . . 10 . . . . 3 5 . . 3 Special 40 | . . . . . . . 4 31 . 3 2 . . . . . . Kinetic 516 | . 44 19 154 8 . 75 4 11 4 68 6 . . . 13 48 62 Thermal 898 | . . . 58 . . 22 4 231 11 63 60 11 103 212 46 35 42 Explosive 11 | . . . . . . . . . . . . . 3 5 . . 3 Electromagnetic 42 | . 31 1 . . . . . 10 . . . . . . . . . Impact 38 | . . . . . . . 4 31 . 3 . . . . . . . Robot Hit Streak 26 | . 10 5 17 . . 10 4 14 3 8 13 6 7 12 16 26 14 Robot Miss Streak 9 | . 5 2 2 . . 9 3 5 3 5 4 5 3 6 3 5 9 Penetration Max 1 | . . . . . . . . 1 . 1 . . . . 1 1 1 Secondary Targets 32 | . 4 . 3 . . 3 . 3 . 4 2 . 1 5 1 4 2 Max Gunslinging Chain 1 | . 1 . 1 . . 1 . 1 . 1 1 . 1 1 1 1 1 Shots Hit Robots 825 | . 49 13 87 . 3 51 7 156 5 68 50 6 51 124 39 55 61 Core Hits 428 | . 24 5 39 . . 20 2 79 1 38 19 4 51 67 14 29 36 Critical Kills 11 | . . . . . . . . 2 . . 1 . . . 1 3 4 Critical Parts Destroyed 22 | . . . . . . . . 5 . 5 . . . . 2 6 4 Critical Strikes 58 | . . . 3 . . . . 19 2 9 3 . 2 . 3 9 8 Burn 20 | . . . . . . . . 12 2 2 2 . 2 . . . . Destroy 33 | . . . 3 . . . . 2 . 7 1 . . . 3 9 8 Smash 5 | . . . . . . . . 5 . . . . . . . . . Melee Attacks 4 | . . . 1 . 3 . . . . . . . . . . . . Impact . | . . . . . . . . . . . . . . . . . . Slashing . | . . . . . . . . . . . . . . . . . . Piercing . | . . . . . . . . . . . . . . . . . . Sneak Attacks 3 | . . . 1 . 2 . . . . . . . . . . . . Combat Hostiles . | . . . . . . . . . . . . . . . . . . Follow-up Attacks . | . . . . . . . . . . . . . . . . . . Damage Inflicted 31323 | . 720 148 1937 9 . 1375 402 7006 139 2315 1648 174 3865 5720 1209 1614 3042 Guns 21717 | . 677 148 1377 . . 1375 125 3541 139 2315 1648 174 1451 4149 1209 1595 1794 Cannons 633 | . . . . . . . . 633 . . . . . . . . . Explosions 6606 | . 35 . 560 . . . . 778 . . . . 2414 1571 . . 1248 Melee . | . . . . . . . . . . . . . . . . . . Ramming 116 | . 8 . . 9 . . . 80 . . . . . . . 19 . Kinetic 7118 | . 353 135 1510 . . 1036 57 231 26 1175 192 . . . 206 1058 1139 Thermal 15821 | . 35 . 427 . . 339 68 4202 113 1140 1456 174 1451 4149 1003 537 727 Explosive 4270 | . . . . . . . . . . . . . 1523 1571 . . 1176 Electromagnetic 1747 | . 324 13 . . . . . 519 . . . . 891 . . . . Impact 2251 | . . . . . . . 277 1974 . . . . . . . . . Slashing . | . . . . . . . . . . . . . . . . . . Piercing . | . . . . . . . . . . . . . . . . . . Highest Corruption 22 | . . . . . . . 18 22 . . . . 5 2 3 3 9 Average Corruption 9 | . . . . . . . 12 19 . . . . 4 1 2 3 3 Corruption Purged . | . . . . . . . . . . . . . . . . . . Corruption Blocked . | . . . . . . . . . . . . . . . . . . Effects 153 | . . . . . . . 4 92 . . . . 17 5 11 15 9 Message Errors 36 | . . . . . . . 2 20 . . . . 4 . 3 4 3 Matter Fused 27 | . . . . . . . . 15 . . . . 5 . 1 5 1 Heat Flow Errors 18 | . . . . . . . . 12 . . . . 2 . 2 1 1 Energy Discharges 12 | . . . . . . . 1 6 . . . . 1 1 3 . . Parts Rejected 3 | . . . . . . . . 3 . . . . . . . . . Parts Fused 3 | . . . . . . . . 1 . . . . . . 1 1 . Data Loss (minor) 23 | . . . . . . . . 14 . . . . 2 2 . 3 2 Data Loss (major) 6 | . . . . . . . . 5 . . . . . 1 . . . Misfires 9 | . . . . . . . . 4 . . . . 2 1 1 . 1 Alerts 1 | . . . . . . . . 1 . . . . . . . . . Misdirections 3 | . . . . . . . 1 2 . . . . . . . . . Weapon Failures 12 | . . . . . . . . 9 . . . . 1 . . 1 1 Overload Shots 2 | . . . . . . . . . . . . . . . . 2 . Overflow Damage 1433 | . . . 25 . . . . 1017 . . . . 185 65 . . 141 Projectiles 1017 | . . . . . . . . 1017 . . . . . . . . . Explosions 416 | . . . 25 . . . . . . . . . 185 65 . . 141 Melee . | . . . . . . . . . . . . . . . . . . Knockbacks 12 | . . . . . . . . 12 . . . . . . . . . Impact 11 | . . . . . . . . 11 . . . . . . . . . Kinetic . | . . . . . . . . . . . . . . . . . . Secondary 1 | . . . . . . . . 1 . . . . . . . . . Self-Inflicted Damage 223 | . . . 90 . . . . 26 . . . . 107 . . . . Shots 5 | . . . 2 . . . . 2 . . . . 1 . . . . Rammed 5 | . 2 . . . . . . 1 . . . . . . . 2 . Targets Rammed 14 | . 3 . . 1 . . . 8 . . . . . . . 2 . Kicked 7 | . . . . . . . . 7 . . . . . . . . . Crushed 2 | . 1 . . 1 . . . . . . . . . . . . . Highest Temperature 405 | . 45 93 40 . . 361 28 330 166 158 60 84 236 405 202 106 96 Average Temperature 81 | . 22 46 12 . . 167 14 97 61 41 26 46 83 108 73 68 96 Received Heat Transfer 2198 | . 57 129 84 . . 234 . 753 18 108 . 9 90 114 22 67 513 Effects 2 | . . . . . . . . 2 . . . . . . . . . Interference 2 | . . . . . . . . 2 . . . . . . . . . Siege Activations 11 | . . . . . . . . . . . . . . 4 3 3 1 Total Turns 170 | . . . . . . . . . . . . . . 43 33 44 50 Longest Duration 50 | . . . . . . . . . . . . . . 21 14 27 50 Martial Activations . | . . . . . . . . . . . . . . . . . . Shielding Activations . | . . . . . . . . . . . . . . . . . . Robots Disrupted . | . . . . . . . . . . . . . . . . . . Combat Hostiles . | . . . . . . . . . . . . . . . . . . Robots Corrupted 9 | . . . . . . . . 6 . . . . 3 . . . . Combat Hostiles 5 | . . . . . . . . 5 . . . . . . . . . Parts Fried 17 | . . . . . . . . 7 . . . . 10 . . . . Impact Corruptions 31 | . . . . . . . . 31 . . . . . . . . . Robots Melted 10 | . . . . . . . . 4 1 3 . . 1 . 1 . . Combat Hostiles 10 | . . . . . . . . 4 1 3 . . 1 . 1 . . Parts Melted 77 | . . . 1 . . . . 31 2 8 1 . 8 16 10 . . Heat Transferred 23917 | . 50 . 525 . . 500 100 7881 400 2200 1667 311 2332 5138 1159 716 938 Parts Sabotaged . | . . . . . . . . . . . . . . . . . . Parts Stolen . | . . . . . . . . . . . . . . . . . . Parts Stripped . | . . . . . . . . . . . . . . . . . . Power Chain Reactions 6 | . 1 . . . . . . 3 . . . . . 1 . . 1 Alert | -11 -10 -10 -10 -8 -8 -6 -6 -6 -5 -5 -5 -5 -5 -4 -3 -3 -3 ------- Run | Yrd Mat Min Sub Rec Scr Fac Was Fac Fac Ext Cet Arc Hub Fac Res Qua Frg Maximum Alert Level 5 | . . . . . . . . 2 1 3 3 2 5 5 3 2 2 Low Security (%) 45 | . 100 100 . 100 . 100 100 75 . 7 . . 7 . . . . Level 1 11 | . . . . . . . . 8 100 31 . 36 12 . . . 77 Level 2 13 | . . . . . . . . 16 . 8 25 63 1 3 . 100 22 Level 3 21 | . . . . . . . . . . 53 74 . 28 42 100 . . Level 4 5 | . . . . . . . . . . . . . 39 38 . . . Level 5 1 | . . . . . . . . . . . . . . 15 . . . High Security . | . . . . . . . . . . . . . 9 . . . . Max Security . | . . . . . . . . . . . . . . . . . . Peak Influence 2098 | . 177 30 . 32 . 71 17 608 281 1091 818 446 2098 1799 948 673 549 Initial 1100 | . . 17 . . . . 17 . 274 114 604 279 145 1100 944 516 333 Average 425 | . 83 4 . 5 . 15 3 169 248 612 725 391 999 1182 894 595 336 Influence Increases 9248 | . 442 50 . 193 . 211 3 1352 59 1411 380 217 2313 1415 313 408 481 Destroy 0b10 Robot/C 4260 | . 220 40 . . . 160 . 900 20 640 160 80 660 740 200 220 220 Destroy 0b10 Robot/NC 220 | . 40 . . 5 . 5 . 45 . 30 10 . 25 25 10 5 20 Destroy Leader 818 | . 60 10 . . . 32 . 210 10 94 . . 144 142 50 30 36 Allied During Kill 1498 | . . . . . . . . 11 . 397 170 80 770 36 25 9 . Successful Hack 101 | . 14 . . 36 . . . . . 14 . . 30 . . . 7 Select Force Hacks 210 | . 60 . . 150 . . . . . . . . . . . . . Disable Machine 825 | . 45 . . . . . . 105 15 105 . 45 210 120 . 90 90 Destroy Structure 1091 | . 3 . . 2 . 14 3 51 14 116 40 12 414 292 28 24 78 Lose Combat Pursuer 225 | . . . . . . . . 30 . 15 . . 60 60 . 30 30 Influence Decreases 8917 | . 396 96 . 193 . 161 53 792 386 565 761 499 631 1787 1193 735 669 Entered New Map 4220 | . . 29 . . . . 33 . 286 119 475 419 271 1071 855 403 259 Time Decay 3717 | . 396 47 . 193 . 151 20 532 100 446 246 40 270 386 318 302 270 Lost Part 400 | . . 20 . . . 10 . 160 . . . . 10 30 20 10 140 Lost Ally 280 | . . . . . . . . 100 . . 40 40 80 . . 20 . Purge Threat 300 | . . . . . . . . . . . . . . 300 . . . Squads Dispatched 48 | . 4 . . . . 4 . 16 . 3 . . 3 7 6 2 3 Investigation 17 | . 4 . . . . 1 . 7 . 1 . . . 2 1 1 . Extermination 10 | . . . . . . 1 . 4 . . . . 1 1 1 1 1 Reinforcement 16 | . . . . . . 1 . 4 . 2 . . 2 2 4 . 1 Assault 4 | . . . . . . . . 1 . . . . . 2 . . 1 Garrison 1 | . . . . . . 1 . . . . . . . . . . . Intercept . | . . . . . . . . . . . . . . . . . . Searches Triggered . | . . . . . . . . . . . . . . . . . . Construction Impeded 2 | . . . . . . . . 1 . 1 . . . . . . . Haulers Reinforced 2 | . . . . . . . . 1 . . . . . . 1 . . Active Scanning Responses . | . . . . . . . . . . . . . . . . . . Cargo Convoy Interrupts 1 | . . . . . . . . 1 . . . . . . . . . Stealth | -11 -10 -10 -10 -8 -8 -6 -6 -6 -5 -5 -5 -5 -5 -4 -3 -3 -3 --------- Run | Yrd Mat Min Sub Rec Scr Fac Was Fac Fac Ext Cet Arc Hub Fac Res Qua Frg Distress Signals 26 | . 1 . . . . . . 5 . 2 2 1 1 2 6 2 4 Communications Jammed . | . . . . . . . . . . . . . . . . . . Distress Signals . | . . . . . . . . . . . . . . . . . . Times Spotted 319 | . 20 2 20 . . 12 5 65 1 34 5 5 31 46 15 18 40 Peak Tracking Total 14 | . 3 2 3 . . 4 5 7 1 5 5 2 11 8 3 5 14 Tactical Retreats 13 | . . . . . . . . 2 . 1 . . 2 4 . 2 2 Traps | -11 -10 -10 -10 -8 -8 -6 -6 -6 -5 -5 -5 -5 -5 -4 -3 -3 -3 ------- Run | Yrd Mat Min Sub Rec Scr Fac Was Fac Fac Ext Cet Arc Hub Fac Res Qua Frg Traps Triggered 13 | . . . . . . 1 . 4 . 2 . . 2 1 . 3 . Indirectly . | . . . . . . . . . . . . . . . . . . Trap Hack Attempts . | . . . . . . . . . . . . . . . . . . Triggered . | . . . . . . . . . . . . . . . . . . Disarmed . | . . . . . . . . . . . . . . . . . . Reprogrammed . | . . . . . . . . . . . . . . . . . . Reused . | . . . . . . . . . . . . . . . . . . Traps Extracted . | . . . . . . . . . . . . . . . . . . Installed . | . . . . . . . . . . . . . . . . . . Triggered . | . . . . . . . . . . . . . . . . . . Machines | -11 -10 -10 -10 -8 -8 -6 -6 -6 -5 -5 -5 -5 -5 -4 -3 -3 -3 ---------- Run | Yrd Mat Min Sub Rec Scr Fac Was Fac Fac Ext Cet Arc Hub Fac Res Qua Frg Machines Disabled 56 | . 3 . 1 . . . . 7 1 7 . 3 14 8 . 6 6 Max in Single Turn 5 | . 2 . 1 . . . . 2 1 1 . . 5 3 . 1 1 Garrison Access 1 | . . . . . . . . . . . . . . . 1 . . Network Hub 1 | . . . . . . . . . . . . . 1 . . . . Machines Repaired . | . . . . . . . . . . . . . . . . . . Machines Dismantled . | . . . . . . . . . . . . . . . . . . Machines Sabotaged . | . . . . . . . . . . . . . . . . . . Overloaded Fab Kills . | . . . . . . . . . . . . . . . . . . Hacking | -11 -10 -10 -10 -8 -8 -6 -6 -6 -5 -5 -5 -5 -5 -4 -3 -3 -3 --------- Run | Yrd Mat Min Sub Rec Scr Fac Was Fac Fac Ext Cet Arc Hub Fac Res Qua Frg Machines Accessed 59 | . 10 1 2 10 4 1 . 9 . 10 . . 6 3 1 1 1 Terminals 33 | . 8 . . 5 . . . 2 . 9 . . 6 1 . 1 1 Fabricators . | . . . . . . . . . . . . . . . . . . Repair Stations . | . . . . . . . . . . . . . . . . . . Recycling Units 18 | . 2 . . 5 . 1 . 7 . 1 . . . 2 . . . Scanalyzers . | . . . . . . . . . . . . . . . . . . Garrison Access 1 | . . . . . . . . . . . . . . . 1 . . Total Hacks 125 | . 22 1 5 25 15 2 . 17 . 16 . . 9 6 2 1 4 Successful 64 | . 13 1 5 12 15 . . 6 . 4 . . 2 4 1 . 1 Failed 60 | . 8 . . 13 . 2 . 11 . 12 . . 7 2 1 1 3 Catastrophic 15 | . . . . 3 . 1 . 3 . 4 . . 3 . . . 1 Database Lockouts 1 | . 1 . . . . . . . . . . . . . . . . Manual 68 | . 18 . . 21 . 2 . 16 . 4 1 . 3 2 . 1 . Terminals 76 | . 20 . . 20 . . . 3 . 15 . . 9 4 . 1 4 Fabricators . | . . . . . . . . . . . . . . . . . . Repair Stations . | . . . . . . . . . . . . . . . . . . Recycling Units 26 | . 2 . . 5 . 2 . 14 . 1 . . . 2 . . . Scanalyzers . | . . . . . . . . . . . . . . . . . . Garrison Access 2 | . . . . . . . . . . . . . . . 2 . . Terminal Hacks 42 | . 8 1 5 5 15 . . 1 . 3 . . 1 2 . . 1 Record 19 | . . . 4 . 15 . . . . . . . . . . . . Part Schematic 1 | . . . . 1 . . . . . . . . . . . . . Robot Analysis 3 | . 2 . . . . . . . . . . . 1 . . . . Prototype ID Bank 9 | . 5 . . 4 . . . . . . . . . . . . . Open Door 4 | . . 1 . . . . . . . 3 . . . . . . . Branch Access Points 1 | . . . . . . . . . . . . . . . . . 1 Unreport Threat 2 | . . . . . . . . . . . . . . 2 . . . Locate Traps 2 | . 1 . . . . . . 1 . . . . . . . . . Proto ID Catalog 1 | . . . 1 . . . . . . . . . . . . . . Fabricator Hacks . | . . . . . . . . . . . . . . . . . . Repair Station Hacks . | . . . . . . . . . . . . . . . . . . Recycling Unit Hacks . | . . . . . . . . . . . . . . . . . . Scanalyzer . | . . . . . . . . . . . . . . . . . . Garrison Access Hacks 1 | . . . . . . . . . . . . . . . 1 . . Seal Access 1 | . . . . . . . . . . . . . . . 1 . . Unauthorized Hacks 21 | . 5 . . 7 . . . 5 . 1 . . 1 2 . . . Terminals 6 | . 3 . . 2 . . . . . . . . 1 . . . . Assimilate 1 | . 1 . . . . . . . . . . . . . . . . Botnet 4 | . 2 . . 1 . . . . . . . . 1 . . . . Disrupt 1 | . . . . 1 . . . . . . . . . . . . . Fabricators . | . . . . . . . . . . . . . . . . . . Repair Stations . | . . . . . . . . . . . . . . . . . . Recycling Units 15 | . 2 . . 5 . . . 5 . 1 . . . 2 . . . Tunnel 7 | . 2 . . 5 . . . . . . . . . . . . . Fedlink 6 | . . . . . . . . 4 . 1 . . . 1 . . . Scrapoids 1 | . . . . . . . . 1 . . . . . . . . . Scraphulk 1 | . . . . . . . . . . . . . . 1 . . . Scanalyzers . | . . . . . . . . . . . . . . . . . . Garrison Access . | . . . . . . . . . . . . . . . . . . Data Cores Recovered 1 | . 1 . . . . . . . . . . . . . . . . Used . | . . . . . . . . . . . . . . . . . . Hacking Detections 38 | . 8 . . 5 . 1 . 7 . 8 1 . 6 1 . . 1 Full Trace Events 4 | . . . . 1 . 1 . 2 . . . . . . . . . Feedback Events . | . . . . . . . . . . . . . . . . . . Feedback Blocked . | . . . . . . . . . . . . . . . . . . Robot Schematics Acquired . | . . . . . . . . . . . . . . . . . . Robots Built . | . . . . . . . . . . . . . . . . . . Authchips . | . . . . . . . . . . . . . . . . . . Time . | . . . . . . . . . . . . . . . . . . Total Robot Build Rating . | . . . . . . . . . . . . . . . . . . Part Schematics Acquired 1 | . . . . 1 . . . . . . . . . . . . . Parts Built . | . . . . . . . . . . . . . . . . . . Authchips . | . . . . . . . . . . . . . . . . . . Time . | . . . . . . . . . . . . . . . . . . Total Part Build Rating . | . . . . . . . . . . . . . . . . . . Parts Repaired . | . . . . . . . . . . . . . . . . . . Time . | . . . . . . . . . . . . . . . . . . Parts Recycled . | . . . . . . . . . . . . . . . . . . Recycled Matter . | . . . . . . . . . . . . . . . . . . Retrieved Matter . | . . . . . . . . . . . . . . . . . . Retrieved Components . | . . . . . . . . . . . . . . . . . . Parts Scanalyzed . | . . . . . . . . . . . . . . . . . . Part Schematics Acquired . | . . . . . . . . . . . . . . . . . . Parts Damaged . | . . . . . . . . . . . . . . . . . . Bothacking | -11 -10 -10 -10 -8 -8 -6 -6 -6 -5 -5 -5 -5 -5 -4 -3 -3 -3 ------------ Run | Yrd Mat Min Sub Rec Scr Fac Was Fac Fac Ext Cet Arc Hub Fac Res Qua Frg Used RIF Installer . | . . . . . . . . . . . . . . . . . . Robots Hacked 3 | . . . 1 . 2 . . . . . . . . . . . . Non-combat 1 | . . . 1 . . . . . . . . . . . . . . Combat 2 | . . . . . 2 . . . . . . . . . . . . Robot Hacks Applied 3 | . . . 1 . 2 . . . . . . . . . . . . parse_system 3 | . . . 1 . 2 . . . . . . . . . . . . Relay Couplers Released 3 | . . . . . . . . . . . . . 3 . . . . Programmers 3 | . . . . . . . . . . . . . 3 . . . . Fabnet Peak Effective % . | . . . . . . . . . . . . . . . . . . Robots Rewired 7 | . . . . . . . . . . 7 . . . . . . . Allies Hacked 1 | . . . . . . . . . . . . . . . 1 . . Hacks Repelled . | . . . . . . . . . . . . . . . . . . Allies | -11 -10 -10 -10 -8 -8 -6 -6 -6 -5 -5 -5 -5 -5 -4 -3 -3 -3 -------- Run | Yrd Mat Min Sub Rec Scr Fac Was Fac Fac Ext Cet Arc Hub Fac Res Qua Frg Total Allies 25 | . . . . . . . . 5 . 14 5 . . 1 . . . Largest Group 17 | . . . . . . . . 5 . 14 17 15 13 1 1 1 . Highest-Rated Group 987 | . . . . . . . . 143 . 571 987 803 739 123 122 122 . Highest-Rated Ally 159 | . . . . . . . . 31 . 159 159 96 96 123 122 122 . Total Orders 4 | . . . . . . . . . . . 4 . . . . . . STAY 2 | . . . . . . . . . . . 2 . . . . . . FOLLOW 2 | . . . . . . . . . . . 2 . . . . . . Ally Attacks 352 | . . . . . . . . 32 . 114 40 35 87 23 21 . . Total Damage 8078 | . . . . . . . . 508 . 1793 1067 622 2433 643 1012 . . Kills 59 | . . . . . . . . 2 . 15 8 4 22 3 5 . . Allies Corrupted 6 | . . . . . . . . . . . . . 6 . . . . Allies Melted . | . . . . . . . . . . . . . . . . . . Intel | -11 -10 -10 -10 -8 -8 -6 -6 -6 -5 -5 -5 -5 -5 -4 -3 -3 -3 ------- Run | Yrd Mat Min Sub Rec Scr Fac Was Fac Fac Ext Cet Arc Hub Fac Res Qua Frg Active Infowar (turns) 8038 | . . . . . . 688 150 1785 211 1118 537 92 655 919 709 666 508 Optics 8028 | . . . . . . 688 150 1775 211 1118 537 92 655 919 709 666 508 Sensors 1499 | . . . . . . . . 953 173 373 . . . . . . . Seismic 84 | . . . . . . 84 . . . . . . . . . . . Robot Analysis Total 3 | . 2 . . . . . . . . . . . 1 . . . . Derelict Logs Recovered 7 | . . 1 1 . 5 . . . . . . . . . . . . Drone Launches . | . . . . . . . . . . . . . . . . . . Drone Recoveries . | . . . . . . . . . . . . . . . . . . Exploration | -11 -10 -10 -10 -8 -8 -6 -6 -6 -5 -5 -5 -5 -5 -4 -3 -3 -3 ------------- Run | Yrd Mat Min Sub Rec Scr Fac Was Fac Fac Ext Cet Arc Hub Fac Res Qua Frg Turns Passed 18357 | . 1128 339 3332 1092 4348 692 150 1785 211 1118 537 92 655 919 709 666 584 Spaces Moved 10165 | 1 650 191 1677 685 2779 383 87 1013 173 492 253 41 344 436 349 297 314 Core 39 | . . . . . . . . . . . . . . . . . 39 Treads 9007 | . 477 191 1677 685 2779 383 87 439 . 294 253 41 344 436 349 297 275 Legs 1119 | 1 173 . . . . . . 574 173 198 . . . . . . . Wheels . | . . . . . . . . . . . . . . . . . . Hover . | . . . . . . . . . . . . . . . . . . Flight . | . . . . . . . . . . . . . . . . . . Fastest Speed 50 | 120 120 160 160 155 155 156 155 100 105 105 160 160 160 155 160 166 50 Average Speed 156 | 120 149 160 174 156 155 156 155 128 105 165 160 160 160 157 165 166 151 Slowest Speed 360 | 120 160 160 240 160 155 156 156 360 105 320 160 160 160 160 166 166 180 Overloaded Moves . | . . . . . . . . . . . . . . . . . . Propulsion Burnouts . | . . . . . . . . . . . . . . . . . . Robots Hopped . | . . . . . . . . . . . . . . . . . . Potential Cave-ins 2 | . . . 2 . . . . . . . . . . . . . . Cave-ins Triggered . | . . . . . . . . . . . . . . . . . . Exploration Rate (%) 50 | 1 98 40 89 98 96 14 92 29 6 77 59 79 40 20 8 46 25 Regions Visited 17 Branch Regions 10 Pre-discovered Areas 12 | . 2 . 1 5 3 . . 1 . . . . . . . . . Known Exits Taken 3 | . . . . . . . . 1 1 . . . . . 1 . . Unknown Exits Taken 12 | 1 1 1 1 1 1 . . . . 1 1 1 1 1 . 1 . Scrap Searched 27 | . . . 21 . 6 . . . . . . . . . . . . Spaces Dug 25 | . . . 4 2 . 5 . 5 2 . . . 3 3 1 . . Terrain Destroyed 684 | . 3 . 101 2 . 14 3 51 10 36 5 . 251 151 3 1 53 Melee . | . . . . . . . . . . . . . . . . . . Projectile 200 | . . . 13 2 . 14 3 48 10 36 5 . 24 36 3 1 5 AOE 484 | . 3 . 88 . . . . 3 . . . . 227 115 . . 48 Terrain Rammed . | . . . . . . . . . . . . . . . . . . Walls Destroyed . | . . . . . . . . . . . . . . . . . . Machines Disabled . | . . . . . . . . . . . . . . . . . . Actions | -11 -10 -10 -10 -8 -8 -6 -6 -6 -5 -5 -5 -5 -5 -4 -3 -3 -3 --------- Run | Yrd Mat Min Sub Rec Scr Fac Was Fac Fac Ext Cet Arc Hub Fac Res Qua Frg Total 11652 | . 738 206 1897 697 2826 445 97 1255 189 705 342 60 392 565 446 428 364 Wait 314 | . . 3 10 2 . 12 . 40 . 25 24 12 8 39 52 73 14 Move 10150 | . 649 190 1676 684 2778 383 86 1013 172 491 252 40 343 435 348 296 314 Hop . | . . . . . . . . . . . . . . . . . . Pick Up 100 | . 17 1 14 . 14 7 2 14 . 7 10 1 . 6 2 5 . Fast Attach 62 | . 2 . 8 1 5 1 . 14 2 7 7 . 1 5 4 5 . Attach 70 | . 2 2 11 . 4 7 1 15 5 8 2 . . 6 5 2 . Detach 39 | . 3 . 6 . 3 . . 8 1 10 2 . 1 1 2 2 . Swap 56 | . 4 . 10 . 2 2 . 7 . 5 3 1 3 9 3 5 2 Drop 105 | . 14 . 14 1 17 . 4 10 . 9 19 1 1 4 3 8 . Fire 637 | . 44 10 147 8 . 33 4 127 9 41 23 5 35 60 27 30 34 Melee 4 | . . . 1 . 3 . . . . . . . . . . . . Ram . | . . . . . . . . . . . . . . . . . . Kick 6 | . . . . . . . . 6 . . . . . . . . . Crush 7 | . 3 . . 1 . . . 1 . . . . . . . 2 . Escape Stasis 10 | . . . . . . . . . . 10 . . . . . . . Rewire 92 | . . . . . . . . . . 92 . . . . . . . Trap . | . . . . . . . . . . . . . . . . . . Miscellaneous . | . . . . . . . . . . . . . . . . . . Route ------- -11/Scrapyard -10/Materials (discovered 5 exits: *Mat x3 / *Min x2) -10/Mines (discovered 3 exits: *Mat x2 / *Sub) -10/Subcaves (discovered 3 exits: [*Mat x2] / *Rec) -8/Recycling (discovered 2 exits: *Fac / *Scr) -8/Scraptown (discovered 2 exits: *Fac x2) -6/Factory -6/Waste -6/Factory (discovered 2 exits: *Fac x2) -5/Factory -5/Extension (discovered 2 exits: *Fac / *Cet) -5/Cetus (discovered 2 exits: *Fac / [*Arc]) -5/Archives (discovered 2 exits: *Hub x2) -5/Hub_04(d) (discovered 2 exits: *Fac x2) -4/Factory -3/Research (discovered 2 exits: Arm / *Qua) -3/Quarantine (discovered 2 exits: [*Sec] / *Frg) -3/Protoforge History --------- Turn | Location | Event 1 | -11/Scrapyard | Discovered new exit (range 0) 1 | -11/Scrapyard | Entered Materials 246 | -10/Materials | Discovered new exit (range 16) 307 | -10/Materials | Build established: Mutant 424 | -10/Materials | Discovered new exit (range 16) 492 | -10/Materials | Discovered new exit (range 8) 889 | -10/Materials | Discovered new exit (range 6) 985 | -10/Materials | Discovered new exit (range 16) 992 | -10/Materials | Central database locked down 1129 | -10/Materials | Entered Mines 1185 | -10/Mines | Discovered new exit (range 5) 1198 | -10/Mines | Identified exit to Materials 1272 | -10/Mines | Met a Derelict who couldn't figure out how to use a Trap Extractor 1448 | -10/Mines | Discovered new exit (range 10) 1468 | -10/Mines | Entered Subcaves 1469 | -10/Subcaves | Approached by a straggling Scientist 1754 | -10/Subcaves | Core integrity fell below 50% 2067 | -10/Subcaves | Disturbed a concealed Subdweller 2068 | -10/Subcaves | Ambushed by Subdweller buried in earth 2070 | -10/Subcaves | Disturbed a concealed Subdweller 2092 | -10/Subcaves | Build established: Scavenger-Mutant 2411 | -10/Subcaves | Build established: Mutant 2639 | -10/Subcaves | Shifting Twisted Machinery released Flamer 2756 | -10/Subcaves | Shifting Twisted Machinery released Sub. Power Source 2846 | -10/Subcaves | Visited 4L-MR0's lab 2872 | -10/Subcaves | Found Rainbow Chip 2873 | -10/Subcaves | Attached Rainbow Chip, gained temporary slots: Power, Propulsion, Utility, Weapon 2969 | -10/Subcaves | Shifting Twisted Machinery released Barrage Gun 3003 | -10/Subcaves | Core integrity fell below 20% 3049 | -10/Subcaves | A swath of the cavern ceiling suddenly collapsed 3057 | -10/Subcaves | Discovered new exit (range 5) 3180 | -10/Subcaves | Build established: Tank 3791 | -10/Subcaves | Discovered new exit (range 6) 3799 | -10/Subcaves | Ambushed by Subdwellers from Twisted Machinery 3983 | -10/Subcaves | Learned Materials garrison access intel 4274 | -10/Subcaves | Visited Clippyterm 4279 | -10/Subcaves | Learned location of Extension (-5) 4279 | -10/Subcaves | Learned Research security intel 4461 | -10/Subcaves | Shifting Twisted Machinery released Lgt. Humpback 4567 | -10/Subcaves | Shifting Twisted Machinery released Sub. Power Source 4796 | -10/Subcaves | Discovered new exit (range 3) 4800 | -10/Subcaves | Entered Recycling 5641 | -8/Recycling | Discovered new exit (range 15) 5855 | -8/Recycling | Scanned before Scraplab entrance 5877 | -8/Recycling | Entered Scraplab 5889 | -8/Recycling | Discovered new exit (range 3) 5892 | -8/Recycling | Entered Scraptown 6268 | -8/Scraptown | Scanned Subdweller tech in exchange for log data 6271 | -8/Scraptown | Learned location of 1 exit from Research 6273 | -8/Scraptown | Learned Factory stockpile data 6274 | -8/Scraptown | Learned location of Armory (-3) 6277 | -8/Scraptown | Learned Factory garrison access intel 6350 | -8/Scraptown | Visited Cyclists 6372 | -8/Scraptown | Visited Comm Corps 6400 | -8/Scraptown | Visited Red Mages 6459 | -8/Scraptown | Visited Symbiants 6586 | -8/Scraptown | Visited TADAMA 6612 | -8/Scraptown | Visited IN-MT5's Study 6645 | -8/Scraptown | Visited Assassins FH 6812 | -8/Scraptown | Visited UFD Registry 6812 | -8/Scraptown | Registered with UFD as "Alphadrive" 6868 | -8/Scraptown | Visited Chapter 10 6901 | -8/Scraptown | Visited Supply Room 7092 | -8/Scraptown | Delivered Scrap Shield to a Scientist 7184 | -8/Scraptown | Build established: Mutant 7279 | -8/Scraptown | Visited Abandonware Association 7294 | -8/Scraptown | Learned abandonware demo "POISON.EXE" 7294 | -8/Scraptown | Learned abandonware demo "MELTYB.EXE" 7327 | -8/Scraptown | Visited Supply Room 7356 | -8/Scraptown | Visited DA-N13 Charitable Foundation 7370 | -8/Scraptown | Found DCF Scrap (31 items) 7392 | -8/Scraptown | Visited Modified Component R&D 7471 | -8/Scraptown | Visited Science Testing Area 7534 | -8/Scraptown | Visited Junk Cannon Lab 7566 | -8/Scraptown | Found Prototype Special Weapon 7566 | -8/Scraptown | Identified Junk Cannon 7702 | -8/Scraptown | Found Scrap Suit 8104 | -8/Scraptown | Build established: Derelict-Tank 9204 | -8/Scraptown | Entered Cyclist Reading Room 9214 | -8/Scraptown | Learned location of Zion (-7) 9341 | -8/Scraptown | Guru changed UFD alias to "Nulldrive" 9378 | -8/Scraptown | Discovered new exit (range 5) 9966 | -8/Scraptown | Discovered new exit (range 3) 10147 | -8/Scraptown | Met Optimus 10147 | -8/Scraptown | Accepted into 0bPrime 10240 | -8/Scraptown | Entered Factory 10240 | -6/Factory | Evolved 8 slots: Propulsion x2, Utility x5, Weapon x1 10242 | -6/Factory | Loaded intel: 4 garrison access locations 10836 | -6/Factory | Build established: Derelict-Gunner 10876 | -6/Factory | Garrison activated, responded to threat 10932 | -6/Factory | Sucked down chute 10932 | -6/Factory | Entered Waste 10947 | -6/Waste | EMP discharged 10947 | -6/Waste | System corruption reached 10% 10948 | -6/Waste | Spotted C-40 Crusher 10948 | -6/Waste | Spotted C-40 Crusher 10977 | -6/Waste | Destroyed C-40 Crusher 10980 | -6/Waste | Spotted C-40 Crusher 10983 | -6/Waste | Spotted C-40 Crusher 11012 | -6/Waste | Spotted C-40 Crusher 11034 | -6/Waste | Spotted C-40 Crusher 11047 | -6/Waste | EMP discharged 11053 | -6/Waste | Crushed by Compactor (1 part destroyed, 2 dropped) 11056 | -6/Waste | Crushed by Compactor (0 parts destroyed, 1 dropped) 11069 | -6/Waste | Discovered new exit (range 10) 11082 | -6/Waste | Entered Factory 11106 | -6/Factory | Loaded intel: 8 recycling unit locations 11369 | -6/Factory | Build established: Derelict-Skirmisher 11541 | -6/Factory | Learned location of Protoforge (-3) 11908 | -6/Factory | Cargo convoy interrupted 12145 | -6/Factory | Scrapoids reinforcements arrived? 12228 | -6/Factory | Lost 5 allies 12252 | -6/Factory | Build established: Scavenger-Skirmisher 12558 | -6/Factory | Core integrity fell below 50% 12687 | -6/Factory | Discovered new exit (range 20) 12756 | -6/Factory | Build established: Scavenger-Tank 12820 | -6/Factory | Discovered new exit (range 20) 12832 | -6/Factory | First assault squad dispatched 12866 | -6/Factory | Identified exit to Factory 12867 | -6/Factory | Core integrity fell below 20% 12867 | -6/Factory | Entered another Factory area 12867 | -5/Factory | Evolved 2 slots: Propulsion x1, Weapon x1 12868 | -5/Factory | Identified exit to Extension 12897 | -5/Factory | Lost 4 parts (1p1n2w) 13078 | -5/Factory | Entered Extension 13089 | -5/Extension | Disrupted transfer network 13168 | -5/Extension | Build established: Scavenger-Skirmisher 13234 | -5/Extension | Rescued a captive Derelict 13304 | -5/Extension | Rescued A7 13370 | -5/Extension | Rescued a captive Derelict 13372 | -5/Extension | Rescued a captive Derelict 13392 | -5/Extension | Rescued a captive Derelict 13444 | -5/Extension | Loaded intel: 1 recycling unit location 13470 | -5/Extension | Spotted B-75 Beast 13502 | -5/Extension | Spotted B-75 Beast 13508 | -5/Extension | Destroyed B-75 Beast 13515 | -5/Extension | Destroyed B-75 Beast 13637 | -5/Extension | Rescued a captive Derelict 13637 | -5/Extension | Rescued a captive Derelict 13753 | -5/Extension | Build established: Scavenger-Tank 14151 | -5/Extension | Discovered new exit (range 10) 14153 | -5/Extension | Discovered new exit (range 6) 14196 | -5/Extension | Entered Cetus 14196 | -5/Cetus | Accompanied by 14 allies (A7) 14201 | -5/Cetus | Acquired a Cetus Manufacturing Module code from A7 14216 | -5/Cetus | Spotted Cetus Guard 14217 | -5/Cetus | Spotted Cetus Guard 14218 | -5/Cetus | Spotted Cetus Guard 14221 | -5/Cetus | Spotted Cetus Guard 14224 | -5/Cetus | Allies destroyed Cetus Guard 14230 | -5/Cetus | Destroyed Cetus Guard 14234 | -5/Cetus | Destroyed Cetus Guard 14239 | -5/Cetus | Allies destroyed Cetus Guard 14359 | -5/Cetus | Started Cetus Manufacturing Module 14372 | -5/Cetus | Discovered new exit (range 20) 14384 | -5/Cetus | Manufactured an Enhanced Grunt 14409 | -5/Cetus | Manufactured an Enhanced Grunt 14416 | -5/Cetus | Spotted Cetus Guard 14416 | -5/Cetus | Spotted Cetus Guard 14420 | -5/Cetus | Spotted Cetus Guard 14421 | -5/Cetus | Allies destroyed Cetus Guard 14434 | -5/Cetus | Manufactured an Enhanced Grunt 14456 | -5/Cetus | Discovered new exit (range 19) 14459 | -5/Cetus | Manufactured an Enhanced Grunt 14471 | -5/Cetus | Met Revision 17 14484 | -5/Cetus | Manufactured an Enhanced Grunt 14697 | -5/Cetus | Murdered A7 14700 | -5/Cetus | Extracted ID and sensor layout for unrecognized location from A7's data core 14704 | -5/Cetus | Found Prototype Protection 14704 | -5/Cetus | Identified Med. Regenerative Plating 14733 | -5/Cetus | Entered Archives 14733 | -5/Archives | Accompanied by 15 allies 14770 | -5/Archives | Discovered new exit (range 19) 14777 | -5/Archives | Discovered new exit (range 19) 14825 | -5/Archives | Entered Hub_04(d) 14825 | -5/Hub_04(d) | Accompanied by 13 allies 14920 | -5/Hub_04(d) | Disrupted transfer network 15085 | -5/Hub_04(d) | Lost 3 allies 15179 | -5/Hub_04(d) | Discovered new exit (range 4) 15335 | -5/Hub_04(d) | Discovered new exit (range 5) 15413 | -5/Hub_04(d) | Network Hub disabled 15418 | -5/Hub_04(d) | High security lockdown imminent 15421 | -5/Hub_04(d) | Spotted Lightning 15439 | -5/Hub_04(d) | Destroyed 8 combat bots 15461 | -5/Hub_04(d) | Lost 7 allies 15480 | -5/Hub_04(d) | Entered Factory 15480 | -4/Factory | Evolved 2 slots: Power x1, Utility x1 15627 | -4/Factory | Loaded intel: 8 recycling unit locations 15730 | -4/Factory | First assault squad dispatched 15957 | -4/Factory | Found Launcher Loader 16177 | -4/Factory | Scraphulk reinforcements arrived? 16301 | -4/Factory | Discovered new exit (range 20) 16399 | -4/Factory | Entered Research 16399 | -3/Research | Accompanied by 1 ally 16399 | -3/Research | Evolved 2 slots: Utility x2 16400 | -3/Research | Identified exit to Armory 16506 | -3/Research | Spotted B-86 Titan 16627 | -3/Research | Revision forces began assault on 0b10 16637 | -3/Research | Met up with Revision 17++ 16705 | -3/Research | Discovered new exit (range 4) 16714 | -3/Research | Identified exit to Quarantine 17108 | -3/Research | Entered Quarantine 17108 | -3/Quarantine | Accompanied by 1 ally 17233 | -3/Quarantine | Found Alien Artifact 17324 | -3/Quarantine | Found Alien Artifact 17354 | -3/Quarantine | Found Alien Artifact 17467 | -3/Quarantine | Found Alien Slashing Weapon 17520 | -3/Quarantine | Found Alien Artifact 17520 | -3/Quarantine | Identified Phase Redirector 17651 | -3/Quarantine | Spotted Fortress 17764 | -3/Quarantine | Discovered new exit (range 6) 17764 | -3/Quarantine | Discovered new exit (range 7) 17774 | -3/Quarantine | Entered Protoforge 17980 | -3/Protoforge | Superfortress began startup sequence 18191 | -3/Protoforge | Spotted Hotshot 18196 | -3/Protoforge | Spotted Hotshot 18213 | -3/Protoforge | Destroyed Hotshot 18229 | -3/Protoforge | Destroyed Hotshot 18274 | -3/Protoforge | First assault squad dispatched 18313 | -3/Protoforge | Spotted AP7-3 18315 | -3/Protoforge | Spotted Hotshot 18315 | -3/Protoforge | Spotted Hotshot 18317 | -3/Protoforge | Spotted AP7-3 18322 | -3/Protoforge | Spotted Hotshot 18329 | -3/Protoforge | Spotted Hotshot 18336 | -3/Protoforge | Core integrity fell below 50% 18339 | -3/Protoforge | Released all parts (6) 18346 | -3/Protoforge | Core integrity fell below 20% 18358 | -3/Protoforge | Destroyed by G-73 Enforcer with Phase Gun Last Messages --------------- 18339_ Released Adv. Power Amplifier. 18339_ Released Lrg. Storage Unit. 18339_ Released Rainbow Chip. 18339_ Released Adv. Target Analyzer. 18339_ Released Adv. Heat Sink. 18340_ Temporary Utility slot lost. 18340_ Slug penetrates Reinforced Barrier. 18342_ Penetrated by Slug. 18344_ Forge Pylon damaged. 18345_ Penetrated by Slug. 18345_ U-05 Engineer destroyed. 18348_ ALERT: Potential suspicious activity detected, Programmers report to Protoforge Zone 3A. 18348_ C-30 ARC bursts open, deploying its payload. 18348_ G-73 Enforcer unfolds itself. 18348_ B-74 Champion unfolds itself. 18348_ G-67 Veteran unfolds itself. 18348_ M-36 Artificer unfolds itself. 18348_ Critical hit (Burn: +37). 18358_ M-36 Artificer repairs G-67 Veteran. Map ----- +----------------------------------------------------+ | ?????????????????????????????????????????????????? | | ?????????????????????????????????????????????????? | | ?????????????????????????????????????????????????? | | ?????????????????????????????????????????????????? | | ?????????????????????????????????????????????????? | | ?????????????????????????????????????????????????? | | ?????????????????????????????????????????????????? | | ?????????????????????????????????????????????????? | | ?????????????????????????????????????????????????? | | ?????????????????????????????????????????????????? | | ?????????????????????????????????????????????????? | | ?????????????????????????????????????????????????? | | ?????????????????????????????????????????????????? | | ?????????????????????????????????????????????????? | | ?????????????????????????????????????????????????? | | ?????????????????????????????????????????????????? | | ?????????????????????????????????????????????????? | | ?????????????????????????????????????????????????? | | ?????????????????????????????#???????????????????? | | ???????????????????????????? #???????????????????? | | ???????????????????????????? #???????????????????? | | ??????????????????????????? #???????????????????? | | ??????????????????????????? #???????????????????? | | ?????????????????????????? #???????????????????? | | ########################## ######??????????????? | | @ ????????? | | " """ " ????????? | | "" "" """ " "????????? | | """ """" "" "" "?????????? | | """" """ " """ "" " ?????????? | | " b "" """ " ??????????? | | """ " """" " "" ??????????? | | """" " " " ??????????? | | "" " gg " " "" ???????????? | | """ m% " "" " "" ???????????? | | """""" g """ "" """ ????????????? | | "?" " "" ????????????? | | " """ " """ ""??????????????? | | " " """" " " "" "" ????????????????? | | " " " """ " ??????????????????? | | " """" " " " ""???????????????????? | | " "" "" " ?????????????????????? | | " " """"""""" ???????????????????????? | | "" """""""""?""??????????????????????????? | | "" """""""""??????????????????????????????? | | """""""""???????????????????????????????? | | " """""""""????????????????????????????????? | | """""""""?????????????????????????????????? | | "" """""""""??????????????????????????????????? | | " """""""""???????????????????????????????????? | +----------------------------------------------------+ Best States ------------- Heat Dissipation 135 Coolant Potential 120 Energy Generation 77 Energy Capacity 675 Matter Stores 300 Matter Capacity 300 Sight Range 20 Robot Scan Range 15 Terrain Scan Density 10 Power Amplification 30 Armor Coverage 900 Resistance: EM 15 Core Shielding 20 Weapon Cycling 20 Evasion (%) 55 Target Analysis 8 Recoil Reduction 9 Kinecelleration 40 Item Schematics ----------------- Hcp. Storage Unit | -8/Recycling | Hacked Robot Schematics ------------------ None Fabricated ------------ Nothing Repaired ---------- Nothing Alien Tech Used ----------------- Phase Redirector Achievements -------------- None Challenges ------------ None Game ------ Seed LatentTransmissionDevice Manual? 0 Play Time 02:32:22 Cumulative 341.2 hours Start 2025.06.20 @ 08:39:37 End 2025.06.20 @ 11:50:57 Sessions 1 Manual Loads 0 Difficulty Rogue Special Mode None Game No. 238 Rogue 238 Adventurer 0 Explorer 0 Win Type - Total 26 Types 20/0/4/2/0/0/0/0/0/0 Lore% 89 Gallery% 77 Achievement% 66 Wizard Run 0 Options --------- Layout 0 ASCII 1 Keyboard 1 Movement Arrows Keybinds 0 Fullscreen 2 Font 18/Terminus Map View 76x50 Zoom Use 0% Tactical HUD 1 Map Filters NONE Filters NONE Steam 1 RUN: a5ab276e-0eaf-4012-95ad-2ea5253b5946